Workbook

Sheet Read Me
A1: PWC Edge of Field Calculator
A3: The Edge-of-Field Calculator tool will use the runoff files from PWC runs (ZTS files) and estimate
A4: the concentrations of the pesticide in the runoff. The tool will generate a summary file and time series
A5: file, similar to the ones generated by the PWC, as well as generate summary statistics for all of the runs evaluated and
A6: store the results in the Summary_ESA and Summary_ESA_15 worksheets for use in the PWC Postprocessor tool for
A7: Endangered Species assessments.
A9: To start the tool, press Ctrl-Q and follow directions.
A11: Worksheets
B12: Summary_ESA - worksheet that provides 1-in-10 year summary statistics for the EOF runs done.
B13: Summary_ESA_15 - worksheet that provides 1-in-15 year summary statistics for the EOF runs done.
B14: Daily Calcs - worksheet that calculates the edge-of-field EECs and statistics for a particular run.
B15: Water EECs are estimated using the dissolved runoff amount (RFLX) from the ZTS file.
B16: Benthic EECs are estimated using the runoff and eroded amounts (RFLX + EFLX) from the ZTS file.
B17: PWC Summary - worksheet that provides summary of the statistics for a particular run, similar to the
B18: "Custom_15_Parent.txt" file generated by PWC. This worksheet is exported as a text file for each run.
B19: Note: Unlike the PWC, the EOF Calculator does not estimate 4-day, 21-day, 60-day, 90-day, or Yearly averages,
B20: as flow and volume are not constant with edge-of-field runoff. Rather the runoff is based on daily precipitation,
B21: which is either present or not.
B22: PWC Daily CSV - worksheet that provides the daily EECs for a particular run, similar to the
B23: "Custom_Parent_daily.csv" file generated by the PWC. This worksheet is exported as a csv file for each run.
A27: Disclaimer
A28: "This tool has been approved for release by the U.S. Environmental Protection Agency (USEPA). Althoughthe tool has been subjected to rigorous review, the USEPA reserves the right to update the tool as neededpursuant to further analysis and review. No warranty, expressed or implied, is made by the USEPA or the U.S.Government as to the functionality of the tool and related material nor shall the fact of release constituteany such warranty. Furthermore, the tool is released on condition that neither the USEPA nor the U.S. Governmentshall be held liable for any damages resulting from its authorized or unauthorized use."

Sheet Summary_ESA
A1: Line | B1: Batch Run ID | C1: Peak | D1: 1-day | E1: Yr | F1: overall | G1: 4-day | H1: 21-day | I1: 60-day | J1: 90-day | K1: PW_pk | L1: PW_21

Sheet Summary_ESA_15
A1: Line | B1: Batch Run ID | C1: Peak | D1: 1-day | E1: Yr | F1: overall | G1: 4-day | H1: 21-day | I1: 60-day | J1: 90-day | K1: PW_pk | L1: PW_21

Sheet Daily Calcs
A1: Year | B1: Month | C1: Day | D1: RUNF0 cm/d | E1: ESLS0 | F1: RFLX1 g/cm2/d | G1: EFLX1 g/cm2/d | H1: DCON1 | I1: INFL0 | J1: EOF ug/l, Dissolve | K1: EOF ug/l, Eroded
A2: 61 | B2: 1 | C2: 1 | D2: 0 | E2: 0 | F2: 0 | G2: 0 | H2: 0 | I2: 0 | J2: =IF(D2=0,0,(F2)/D2*1000000*1000) -> 0 | K2: =IF(D2=0,0,(F2+G2)/D2*1000000*1000) -> 0 | M2: Row Labels | N2: Max of EOF ug/l, Dissolve | O2: Max of EOF ug/l, Eroded | Q2: Prob | R2: Max Peak, EOF Dissolved | S2: Max Peak, EOF Eroded
A3: 61 | B3: 1 | C3: 2 | D3: 0 | E3: 0 | F3: 0 | G3: 0 | H3: 0 | I3: 0 | J3: =IF(D3=0,0,(F3)/D3*1000000*1000) -> 0 | K3: =IF(D3=0,0,(F3+G3)/D3*1000000*1000) -> 0 | M3: 61 | N3: 58.25050399 | O3: 58.30096766 | Q3: =1/(30+1) -> 0.03225806452 | R3: =LARGE(N3:N32,1) -> 271.2599345 | S3: =LARGE(O3:O32,1) -> 271.6508766
A4: 61 | B4: 1 | C4: 3 | D4: 0 | E4: 0 | F4: 0 | G4: 0 | H4: 0 | I4: 0 | J4: 0 | K4: 0 | M4: 62 | N4: 66.19917086 | O4: 66.31443063 | Q4: =Q3*2 -> 0.06451612903 | R4: =LARGE(N3:N32,2) -> 271.2599345 | S4: =LARGE(O3:O32,2) -> 271.6508766
A5: 61 | B5: 1 | C5: 4 | D5: 0 | E5: 0 | F5: 0 | G5: 0 | H5: 0 | I5: 0 | J5: 0 | K5: 0 | M5: 63 | N5: 6.827330779 | O5: 6.827472669 | Q5: =Q3*3 -> 0.09677419355 | R5: =LARGE(N3:N32,3) -> 238.8549637 | S5: =LARGE(O3:O32,3) -> 239.2057775
A6: 61 | B6: 1 | C6: 5 | D6: 0 | E6: 0 | F6: 0 | G6: 0 | H6: 0 | I6: 0 | J6: 0 | K6: 0 | M6: 64 | N6: 235.2458474 | O6: 235.6494607 | Q6: =Q3*4 -> 0.1290322581 | R6: =LARGE(N3:N32,4) -> 235.2458474 | S6: =LARGE(O3:O32,4) -> 235.6494607
A7: 61 | B7: 1 | C7: 6 | D7: 0 | E7: 0 | F7: 0 | G7: 0 | H7: 0 | I7: 0.242 | J7: 0 | K7: 0 | M7: 65 | N7: 22.17971107 | O7: 22.18276393
A8: 61 | B8: 1 | C8: 7 | D8: 1.2952 | E8: 45.585 | F8: 0 | G8: 0 | H8: 0 | I8: 4.1854 | J8: 0 | K8: 0 | M8: 66 | N8: 238.8549637 | O8: 239.2057775 | Q8: 1-in-10 yr (ug/L) | R8: =ROUND(SLOPE(R5:R6,$Q5:$Q6)*0.1+INTERCEPT(R5:R6,$Q5:$Q6),0) -> 238 | S8: =ROUND(SLOPE(S5:S6,$Q5:$Q6)*0.1+INTERCEPT(S5:S6,$Q5:$Q6),0) -> 239
A9: 61 | B9: 1 | C9: 8 | D9: 0 | E9: 0 | F9: 0 | G9: 0 | H9: 0 | I9: 4.1854 | J9: 0 | K9: 0 | M9: 67 | N9: 62.66011819 | O9: 62.69615077 | Q9: 1-in-15 yr (ug/L) | R9: =ROUND(SLOPE(R4:R5,$Q4:$Q5)*0.067+INTERCEPT(R4:R5,$Q4:$Q5),0) -> 269 | S9: =ROUND(SLOPE(S4:S5,$Q4:$Q5)*0.067+INTERCEPT(S4:S5,$Q4:$Q5),0) -> 269
A10: 61 | B10: 1 | C10: 9 | D10: 0 | E10: 0 | F10: 0 | G10: 0 | H10: 0 | I10: 4.1854 | J10: 0 | K10: 0 | M10: 68 | N10: 59.11906042 | O10: 59.22951789
A11: 61 | B11: 1 | C11: 10 | D11: 0 | E11: 0 | F11: 0 | G11: 0 | H11: 0 | I11: 4.1854 | J11: 0 | K11: 0 | M11: 69 | N11: 37.06533172 | O11: 37.16360591
A12: 61 | B12: 1 | C12: 11 | D12: 0 | E12: 0 | F12: 0 | G12: 0 | H12: 0 | I12: 4.1854 | J12: 0 | K12: 0 | M12: 70 | N12: 41.02111195 | O12: 41.0470704 | Q12: Benthic Conversion Factor | U12: 2.21
A13: 61 | B13: 1 | C13: 12 | D13: 0 | E13: 0 | F13: 0 | G13: 0 | H13: 0 | I13: 4.1854 | J13: 0 | K13: 0 | M13: 71 | N13: 80.32632642 | O13: 80.48802093 | Q13: Benthic Mass Fraction in Pore Water | U13: 0.168
A14: 61 | B14: 1 | C14: 13 | D14: 0 | E14: 0 | F14: 0 | G14: 0 | H14: 0 | I14: 4.1854 | J14: 0 | K14: 0 | M14: 72 | N14: 24.48861854 | O14: 24.49795002
A15: 61 | B15: 1 | C15: 14 | D15: 0 | E15: 0 | F15: 0 | G15: 0 | H15: 0 | I15: 4.1854 | J15: 0 | K15: 0 | M15: 73 | N15: 271.2599345 | O15: 271.6508766
A16: 61 | B16: 1 | C16: 15 | D16: 0 | E16: 0 | F16: 0 | G16: 0 | H16: 0 | I16: 4.1854 | J16: 0 | K16: 0 | M16: 74 | N16: 92.54314432 | O16: 92.68997535
A17: 61 | B17: 1 | C17: 16 | D17: 0 | E17: 0 | F17: 0 | G17: 0 | H17: 0 | I17: 4.1854 | J17: 0 | K17: 0 | M17: 75 | N17: 24.6417535 | O17: 24.65001797
A18: 61 | B18: 1 | C18: 17 | D18: 0 | E18: 0 | F18: 0 | G18: 0 | H18: 0 | I18: 4.1854 | J18: 0 | K18: 0 | M18: 76 | N18: 7.356528149 | O18: 7.356710781
A19: 61 | B19: 1 | C19: 18 | D19: 0 | E19: 0 | F19: 0 | G19: 0 | H19: 0 | I19: 4.1854 | J19: 0 | K19: 0 | M19: 77 | N19: 46.6585979 | O19: 46.74491947
A20: 61 | B20: 1 | C20: 19 | D20: 0 | E20: 0 | F20: 0 | G20: 0 | H20: 0 | I20: 4.1854 | J20: 0 | K20: 0 | M20: 78 | N20: 25.75695081 | O20: 25.75964062
A21: 61 | B21: 1 | C21: 20 | D21: 0 | E21: 0 | F21: 0 | G21: 0 | H21: 0 | I21: 4.1854 | J21: 0 | K21: 0 | M21: 79 | N21: 58.91420344 | O21: 59.01680359
A22: 61 | B22: 1 | C22: 21 | D22: 0 | E22: 0 | F22: 0 | G22: 0 | H22: 0 | I22: 4.1854 | J22: 0 | K22: 0 | M22: 80 | N22: 271.2599345 | O22: 271.6508766
A23: 61 | B23: 1 | C23: 22 | D23: 0 | E23: 0 | F23: 0 | G23: 0 | H23: 0 | I23: 4.1854 | J23: 0 | K23: 0 | M23: 81 | N23: 23.94978567 | O23: 23.97560012
A24: 61 | B24: 1 | C24: 23 | D24: 0 | E24: 0 | F24: 0 | G24: 0 | H24: 0 | I24: 4.1854 | J24: 0 | K24: 0 | M24: 82 | N24: 45.81141238 | O24: 45.84197055
A25: 61 | B25: 1 | C25: 24 | D25: 0 | E25: 0 | F25: 0 | G25: 0 | H25: 0 | I25: 4.1854 | J25: 0 | K25: 0 | M25: 83 | N25: 113.4605819 | O25: 113.5895673
A26: 61 | B26: 1 | C26: 25 | D26: 0 | E26: 0 | F26: 0 | G26: 0 | H26: 0 | I26: 4.1854 | J26: 0 | K26: 0 | M26: 84 | N26: 7.207738189 | O26: 7.209356851
A27: 61 | B27: 1 | C27: 26 | D27: 0 | E27: 0 | F27: 0 | G27: 0 | H27: 0 | I27: 4.1854 | J27: 0 | K27: 0 | M27: 85 | N27: 140.9527081 | O27: 141.1036108
A28: 61 | B28: 1 | C28: 27 | D28: 0 | E28: 0 | F28: 0 | G28: 0 | H28: 0 | I28: 4.1854 | J28: 0 | K28: 0 | M28: 86 | N28: 0.5422992972 | O28: 0.5423013112
A29: 61 | B29: 1 | C29: 28 | D29: 0 | E29: 0 | F29: 0 | G29: 0 | H29: 0 | I29: 4.1854 | J29: 0 | K29: 0 | M29: 87 | N29: 11.31367393 | O29: 11.31510853
A30: 61 | B30: 1 | C30: 29 | D30: 0 | E30: 0 | F30: 0 | G30: 0 | H30: 0 | I30: 4.1854 | J30: 0 | K30: 0 | M30: 88 | N30: 160.0409181 | O30: 160.3103766
A31: 61 | B31: 1 | C31: 30 | D31: 0 | E31: 0 | F31: 0 | G31: 0 | H31: 0 | I31: 4.1854 | J31: 0 | K31: 0 | M31: 89 | N31: 31.78128182 | O31: 31.79928672
A32: 61 | B32: 1 | C32: 31 | D32: 0 | E32: 0 | F32: 0 | G32: 0 | H32: 0 | I32: 4.1854 | J32: 0 | K32: 0 | M32: 90 | N32: 48.13743455 | O32: 48.17441492
A33: 61 | B33: 2 | C33: 1 | D33: 0 | E33: 0 | F33: 0 | G33: 0 | H33: 0 | I33: 4.1854 | J33: 0 | K33: 0 | M33: Grand Total | N33: 271.2599345 | O33: 271.6508766
A34: 61 | B34: 2 | C34: 2 | D34: 0 | E34: 0 | F34: 0 | G34: 0 | H34: 0 | I34: 4.1854 | J34: 0 | K34: 0
A35: 61 | B35: 2 | C35: 3 | D35: 0 | E35: 0 | F35: 0 | G35: 0 | H35: 0 | I35: 4.1854 | J35: 0 | K35: 0
A36: 61 | B36: 2 | C36: 4 | D36: 0 | E36: 0 | F36: 0 | G36: 0 | H36: 0 | I36: 4.1854 | J36: 0 | K36: 0
A37: 61 | B37: 2 | C37: 5 | D37: 0.028429 | E37: 0.23474 | F37: 0 | G37: 0 | H37: 0 | I37: 4.4179 | J37: 0 | K37: 0
A38: 61 | B38: 2 | C38: 6 | D38: 0.026198 | E38: 0.21072 | F38: 0 | G38: 0 | H38: 0 | I38: 5.8537 | J38: 0 | K38: 0
A39: 61 | B39: 2 | C39: 7 | D39: 0 | E39: 0 | F39: 0 | G39: 0 | H39: 0 | I39: 5.9337 | J39: 0 | K39: 0
A40: 61 | B40: 2 | C40: 8 | D40: 0 | E40: 0 | F40: 0 | G40: 0 | H40: 0 | I40: 5.9337 | J40: 0 | K40: 0
A41: 61 | B41: 2 | C41: 9 | D41: 0 | E41: 0 | F41: 0 | G41: 0 | H41: 0 | I41: 5.9337 | J41: 0 | K41: 0
A42: 61 | B42: 2 | C42: 10 | D42: 0 | E42: 0 | F42: 0 | G42: 0 | H42: 0 | I42: 5.9337 | J42: 0 | K42: 0
A43: 61 | B43: 2 | C43: 11 | D43: 0 | E43: 0 | F43: 0 | G43: 0 | H43: 0 | I43: 5.9337 | J43: 0 | K43: 0
A44: 61 | B44: 2 | C44: 12 | D44: 0 | E44: 0 | F44: 0 | G44: 0 | H44: 0 | I44: 5.9337 | J44: 0 | K44: 0
A45: 61 | B45: 2 | C45: 13 | D45: 0 | E45: 0 | F45: 0 | G45: 0 | H45: 0 | I45: 5.9337 | J45: 0 | K45: 0
A46: 61 | B46: 2 | C46: 14 | D46: 0 | E46: 0 | F46: 0 | G46: 0 | H46: 0 | I46: 5.9337 | J46: 0 | K46: 0
A47: 61 | B47: 2 | C47: 15 | D47: 0 | E47: 0 | F47: 0 | G47: 0 | H47: 0 | I47: 5.9337 | J47: 0 | K47: 0
A48: 61 | B48: 2 | C48: 16 | D48: 0 | E48: 0 | F48: 0 | G48: 0 | H48: 0 | I48: 5.9337 | J48: 0 | K48: 0
A49: 61 | B49: 2 | C49: 17 | D49: 0 | E49: 0 | F49: 0 | G49: 0 | H49: 0 | I49: 5.9337 | J49: 0 | K49: 0
A50: 61 | B50: 2 | C50: 18 | D50: 0 | E50: 0 | F50: 0 | G50: 0 | H50: 0 | I50: 5.9337 | J50: 0 | K50: 0
A51: 61 | B51: 2 | C51: 19 | D51: 0 | E51: 0 | F51: 0 | G51: 0 | H51: 0 | I51: 5.9337 | J51: 0 | K51: 0
A52: 61 | B52: 2 | C52: 20 | D52: 0 | E52: 0 | F52: 0 | G52: 0 | H52: 0 | I52: 5.9337 | J52: 0 | K52: 0
A53: 61 | B53: 2 | C53: 21 | D53: 0 | E53: 0 | F53: 0 | G53: 0 | H53: 0 | I53: 5.9337 | J53: 0 | K53: 0
A54: 61 | B54: 2 | C54: 22 | D54: 0 | E54: 0 | F54: 0 | G54: 0 | H54: 0 | I54: 5.9337 | J54: 0 | K54: 0
A55: 61 | B55: 2 | C55: 23 | D55: 0 | E55: 0 | F55: 0 | G55: 0 | H55: 0 | I55: 5.9337 | J55: 0 | K55: 0
A56: 61 | B56: 2 | C56: 24 | D56: 0 | E56: 0 | F56: 0 | G56: 0 | H56: 0 | I56: 5.9337 | J56: 0 | K56: 0
A57: 61 | B57: 2 | C57: 25 | D57: 0 | E57: 0 | F57: 0 | G57: 0 | H57: 0 | I57: 5.9337 | J57: 0 | K57: 0
A58: 61 | B58: 2 | C58: 26 | D58: 0 | E58: 0 | F58: 0 | G58: 0 | H58: 0 | I58: 5.9337 | J58: 0 | K58: 0
A59: 61 | B59: 2 | C59: 27 | D59: 0 | E59: 0 | F59: 0 | G59: 0 | H59: 0 | I59: 5.9337 | J59: 0 | K59: 0
A60: 61 | B60: 2 | C60: 28 | D60: 0 | E60: 0 | F60: 0 | G60: 0 | H60: 0 | I60: 5.9337 | J60: 0 | K60: 0
A61: 61 | B61: 3 | C61: 1 | D61: 0 | E61: 0 | F61: 0 | G61: 0 | H61: 0 | I61: 5.9337 | J61: 0 | K61: 0
A62: 61 | B62: 3 | C62: 2 | D62: 0 | E62: 0 | F62: 0 | G62: 0 | H62: 0 | I62: 5.9337 | J62: 0 | K62: 0
A63: 61 | B63: 3 | C63: 3 | D63: 0 | E63: 0 | F63: 0 | G63: 0 | H63: 0 | I63: 5.9337 | J63: 0 | K63: 0
A64: 61 | B64: 3 | C64: 4 | D64: 0 | E64: 0 | F64: 0 | G64: 0 | H64: 0 | I64: 5.9337 | J64: 0 | K64: 0
A65: 61 | B65: 3 | C65: 5 | D65: 0 | E65: 0 | F65: 0 | G65: 0 | H65: 0 | I65: 5.9337 | J65: 0 | K65: 0
A66: 61 | B66: 3 | C66: 6 | D66: 0 | E66: 0 | F66: 0 | G66: 0 | H66: 0 | I66: 5.9337 | J66: 0 | K66: 0
A67: 61 | B67: 3 | C67: 7 | D67: 0 | E67: 0 | F67: 0 | G67: 0 | H67: 0 | I67: 5.9337 | J67: =IF(D67=0,0,(F67)/D67*1000000*1000) -> 0 | K67: =IF(D67=0,0,(F67+G67)/D67*1000000*1000) -> 0
A68: 61 | B68: 3 | C68: 8 | D68: 0 | E68: 0 | F68: 0 | G68: 0 | H68: 0 | I68: 5.9337 | J68: 0 | K68: 0
A69: 61 | B69: 3 | C69: 9 | D69: 0 | E69: 0 | F69: 0 | G69: 0 | H69: 0 | I69: 5.9337 | J69: 0 | K69: 0
A70: 61 | B70: 3 | C70: 10 | D70: 0 | E70: 0 | F70: 0 | G70: 0 | H70: 0 | I70: 5.9337 | J70: 0 | K70: 0
A71: 61 | B71: 3 | C71: 11 | D71: 0 | E71: 0 | F71: 0 | G71: 0 | H71: 0 | I71: 5.9337 | J71: 0 | K71: 0
A72: 61 | B72: 3 | C72: 12 | D72: 0 | E72: 0 | F72: 0 | G72: 0 | H72: 0 | I72: 5.9337 | J72: 0 | K72: 0
A73: 61 | B73: 3 | C73: 13 | D73: 0 | E73: 0 | F73: 0 | G73: 0 | H73: 0 | I73: 5.9337 | J73: 0 | K73: 0
A74: 61 | B74: 3 | C74: 14 | D74: 0 | E74: 0 | F74: 0 | G74: 0 | H74: 0 | I74: 5.9337 | J74: 0 | K74: 0
A75: 61 | B75: 3 | C75: 15 | D75: 0 | E75: 0 | F75: 0 | G75: 0 | H75: 0 | I75: 5.9337 | J75: 0 | K75: 0
A76: 61 | B76: 3 | C76: 16 | D76: 0.072947 | E76: 0.78274 | F76: 0 | G76: 0 | H76: 0 | I76: 5.9337 | J76: 0 | K76: 0
A77: 61 | B77: 3 | C77: 17 | D77: 0.0040641 | E77: 0.01821 | F77: 0 | G77: 0 | H77: 0 | I77: 6.9761 | J77: 0 | K77: 0
A78: 61 | B78: 3 | C78: 18 | D78: 0 | E78: 0 | F78: 0 | G78: 0 | H78: 0 | I78: 6.9761 | J78: 0 | K78: 0
A79: 61 | B79: 3 | C79: 19 | D79: 0 | E79: 0 | F79: 0 | G79: 0 | H79: 0 | I79: 6.9761 | J79: 0 | K79: 0
A80: 61 | B80: 3 | C80: 20 | D80: 0 | E80: 0 | F80: 0 | G80: 0 | H80: 0 | I80: 6.9761 | J80: 0 | K80: 0
A81: 61 | B81: 3 | C81: 21 | D81: 0 | E81: 0 | F81: 0 | G81: 0 | H81: 0 | I81: 6.9761 | J81: 0 | K81: 0
A82: 61 | B82: 3 | C82: 22 | D82: 0 | E82: 0 | F82: 0 | G82: 0 | H82: 0 | I82: 6.9761 | J82: 0 | K82: 0
A83: 61 | B83: 3 | C83: 23 | D83: 0 | E83: 0 | F83: 0 | G83: 0 | H83: 0 | I83: 6.9761 | J83: 0 | K83: 0
A84: 61 | B84: 3 | C84: 24 | D84: 0 | E84: 0 | F84: 0 | G84: 0 | H84: 0 | I84: 6.9761 | J84: 0 | K84: 0
A85: 61 | B85: 3 | C85: 25 | D85: 0 | E85: 0 | F85: 0 | G85: 0 | H85: 0 | I85: 6.9761 | J85: 0 | K85: 0
A86: 61 | B86: 3 | C86: 26 | D86: 0 | E86: 0 | F86: 0 | G86: 0 | H86: 0 | I86: 6.9761 | J86: 0 | K86: 0
A87: 61 | B87: 3 | C87: 27 | D87: 0 | E87: 0 | F87: 0 | G87: 0 | H87: 0 | I87: 6.9761 | J87: 0 | K87: 0
A88: 61 | B88: 3 | C88: 28 | D88: 0 | E88: 0 | F88: 0 | G88: 0 | H88: 0 | I88: 6.9761 | J88: 0 | K88: 0
A89: 61 | B89: 3 | C89: 29 | D89: 0 | E89: 0 | F89: 0 | G89: 0 | H89: 0 | I89: 6.9761 | J89: 0 | K89: 0
A90: 61 | B90: 3 | C90: 30 | D90: 0 | E90: 0 | F90: 0 | G90: 0 | H90: 0 | I90: 6.9761 | J90: 0 | K90: 0
A91: 61 | B91: 3 | C91: 31 | D91: 0 | E91: 0 | F91: 0 | G91: 0 | H91: 0 | I91: 6.9761 | J91: 0 | K91: 0
A92: 61 | B92: 4 | C92: 1 | D92: 0 | E92: 0 | F92: 0 | G92: 0 | H92: 0 | I92: 6.9761 | J92: 0 | K92: 0
A93: 61 | B93: 4 | C93: 2 | D93: 0 | E93: 0 | F93: 0 | G93: 0 | H93: 0 | I93: 6.9761 | J93: 0 | K93: 0
A94: 61 | B94: 4 | C94: 3 | D94: 0 | E94: 0 | F94: 0 | G94: 0 | H94: 0 | I94: 6.9761 | J94: 0 | K94: 0
A95: 61 | B95: 4 | C95: 4 | D95: 0 | E95: 0 | F95: 0 | G95: 0 | H95: 0 | I95: 6.9761 | J95: 0 | K95: 0
A96: 61 | B96: 4 | C96: 5 | D96: 0 | E96: 0 | F96: 0 | G96: 0 | H96: 0 | I96: 6.9761 | J96: 0 | K96: 0
A97: 61 | B97: 4 | C97: 6 | D97: 0 | E97: 0 | F97: 0 | G97: 0 | H97: 0 | I97: 6.9761 | J97: 0 | K97: 0
A98: 61 | B98: 4 | C98: 7 | D98: 0 | E98: 0 | F98: 0 | G98: 0 | H98: 0 | I98: 6.9761 | J98: 0 | K98: 0
A99: 61 | B99: 4 | C99: 8 | D99: 0 | E99: 0 | F99: 0 | G99: 0 | H99: 0 | I99: 6.9761 | J99: 0 | K99: 0
A100: 61 | B100: 4 | C100: 9 | D100: 0 | E100: 0 | F100: 0 | G100: 0 | H100: 0 | I100: 6.9761 | J100: 0 | K100: 0
A101: 61 | B101: 4 | C101: 10 | D101: 0 | E101: 0 | F101: 0 | G101: 0 | H101: 0 | I101: 6.9761 | J101: 0 | K101: 0
A102: 61 | B102: 4 | C102: 11 | D102: 0 | E102: 0 | F102: 0 | G102: 0 | H102: 0 | I102: 6.9761 | J102: 0 | K102: 0
A103: 61 | B103: 4 | C103: 12 | D103: 0 | E103: 0 | F103: 0 | G103: 0 | H103: 0 | I103: 6.9761 | J103: 0 | K103: 0
A104: 61 | B104: 4 | C104: 13 | D104: 0 | E104: 0 | F104: 0 | G104: 0 | H104: 0 | I104: 6.9761 | J104: 0 | K104: 0
A105: 61 | B105: 4 | C105: 14 | D105: 0 | E105: 0 | F105: 0 | G105: 0 | H105: 0 | I105: 6.9761 | J105: 0 | K105: 0
A106: 61 | B106: 4 | C106: 15 | D106: 0 | E106: 0 | F106: 0 | G106: 0 | H106: 0 | I106: 6.9761 | J106: 0 | K106: 0
A107: 61 | B107: 4 | C107: 16 | D107: 0 | E107: 0 | F107: 0 | G107: 0 | H107: 0 | I107: 6.9761 | J107: 0 | K107: 0
A108: 61 | B108: 4 | C108: 17 | D108: 0 | E108: 0 | F108: 0 | G108: 0 | H108: 0 | I108: 6.9761 | J108: 0 | K108: 0
A109: 61 | B109: 4 | C109: 18 | D109: 0 | E109: 0 | F109: 0 | G109: 0 | H109: 0 | I109: 6.9761 | J109: 0 | K109: 0
A110: 61 | B110: 4 | C110: 19 | D110: 0 | E110: 0 | F110: 0 | G110: 0 | H110: 0 | I110: 6.9761 | J110: 0 | K110: 0
A111: 61 | B111: 4 | C111: 20 | D111: 0 | E111: 0 | F111: 0 | G111: 0 | H111: 0 | I111: 6.9761 | J111: 0 | K111: 0
A112: 61 | B112: 4 | C112: 21 | D112: 0 | E112: 0 | F112: 0 | G112: 0 | H112: 0 | I112: 6.9761 | J112: 0 | K112: 0
A113: 61 | B113: 4 | C113: 22 | D113: 0 | E113: 0 | F113: 0 | G113: 0 | H113: 0 | I113: 6.9761 | J113: 0 | K113: 0
A114: 61 | B114: 4 | C114: 23 | D114: 0 | E114: 0 | F114: 0 | G114: 0 | H114: 0 | I114: 6.9761 | J114: 0 | K114: 0
A115: 61 | B115: 4 | C115: 24 | D115: 0 | E115: 0 | F115: 0 | G115: 0 | H115: 0 | I115: 6.9761 | J115: 0 | K115: 0
A116: 61 | B116: 4 | C116: 25 | D116: 0 | E116: 0 | F116: 0 | G116: 0 | H116: 0 | I116: 6.9761 | J116: 0 | K116: 0
A117: 61 | B117: 4 | C117: 26 | D117: 0 | E117: 0 | F117: 0 | G117: 0 | H117: 0 | I117: 6.9761 | J117: 0 | K117: 0
A118: 61 | B118: 4 | C118: 27 | D118: 0 | E118: 0 | F118: 0 | G118: 0 | H118: 0 | I118: 6.9761 | J118: 0 | K118: 0
A119: 61 | B119: 4 | C119: 28 | D119: 0 | E119: 0 | F119: 0 | G119: 0 | H119: 0 | I119: 6.9761 | J119: 0 | K119: 0
A120: 61 | B120: 4 | C120: 29 | D120: 0 | E120: 0 | F120: 0 | G120: 0 | H120: 0 | I120: 6.9761 | J120: 0 | K120: 0
A121: 61 | B121: 4 | C121: 30 | D121: 0.42867 | E121: 8.935 | F121: 0 | G121: 0 | H121: 0 | I121: 7.1813 | J121: 0 | K121: 0
A122: 61 | B122: 5 | C122: 1 | D122: 0 | E122: 0 | F122: 0 | G122: 0 | H122: 0 | I122: 7.3722 | J122: 0 | K122: 0
A123: 61 | B123: 5 | C123: 2 | D123: 0 | E123: 0 | F123: 0 | G123: 0 | H123: 0 | I123: 7.3722 | J123: 0 | K123: 0
A124: 61 | B124: 5 | C124: 3 | D124: 0 | E124: 0 | F124: 0 | G124: 0 | H124: 0 | I124: 7.3722 | J124: 0 | K124: 0
A125: 61 | B125: 5 | C125: 4 | D125: 0 | E125: 0 | F125: 0 | G125: 0 | H125: 0 | I125: 7.3722 | J125: 0 | K125: 0
A126: 61 | B126: 5 | C126: 5 | D126: 0 | E126: 0 | F126: 0 | G126: 0 | H126: 0 | I126: 7.3722 | J126: 0 | K126: 0
A127: 61 | B127: 5 | C127: 6 | D127: 0 | E127: 0 | F127: 0 | G127: 0 | H127: 0 | I127: 7.3722 | J127: 0 | K127: 0
A128: 61 | B128: 5 | C128: 7 | D128: 0 | E128: 0 | F128: 0 | G128: 0 | H128: 0 | I128: 7.3722 | J128: 0 | K128: 0
A129: 61 | B129: 5 | C129: 8 | D129: 0 | E129: 0 | F129: 0 | G129: 0 | H129: 0 | I129: 7.3722 | J129: 0 | K129: 0
A130: 61 | B130: 5 | C130: 9 | D130: 0 | E130: 0 | F130: 0 | G130: 0 | H130: 0 | I130: 7.3722 | J130: 0 | K130: 0
A131: 61 | B131: 5 | C131: 10 | D131: 0 | E131: 0 | F131: 0 | G131: 0 | H131: 0 | I131: 7.3722 | J131: =IF(D131=0,0,(F131)/D131*1000000*1000) -> 0 | K131: =IF(D131=0,0,(F131+G131)/D131*1000000*1000) -> 0
A132: 61 | B132: 5 | C132: 11 | D132: 0 | E132: 0 | F132: 0 | G132: 0 | H132: 0 | I132: 7.3722 | J132: 0 | K132: 0
A133: 61 | B133: 5 | C133: 12 | D133: 0 | E133: 0 | F133: 0 | G133: 0 | H133: 0 | I133: 7.3722 | J133: 0 | K133: 0
A134: 61 | B134: 5 | C134: 13 | D134: 0 | E134: 0 | F134: 0 | G134: 0 | H134: 0 | I134: 7.3722 | J134: 0 | K134: 0
A135: 61 | B135: 5 | C135: 14 | D135: 0 | E135: 0 | F135: 0 | G135: 0 | H135: 0 | I135: 7.3722 | J135: 0 | K135: 0
A136: 61 | B136: 5 | C136: 15 | D136: 0 | E136: 0 | F136: 0 | G136: 0 | H136: 0 | I136: 7.3722 | J136: 0 | K136: 0
A137: 61 | B137: 5 | C137: 16 | D137: 0 | E137: 0 | F137: 0 | G137: 0 | H137: 0 | I137: 7.3722 | J137: 0 | K137: 0
A138: 61 | B138: 5 | C138: 17 | D138: 0 | E138: 0 | F138: 0 | G138: 0 | H138: 0 | I138: 7.3722 | J138: 0 | K138: 0
A139: 61 | B139: 5 | C139: 18 | D139: 0 | E139: 0 | F139: 0 | G139: 0 | H139: 0 | I139: 7.3722 | J139: 0 | K139: 0
A140: 61 | B140: 5 | C140: 19 | D140: 0 | E140: 0 | F140: 0 | G140: 0 | H140: 0 | I140: 7.3722 | J140: 0 | K140: 0
A141: 61 | B141: 5 | C141: 20 | D141: 0 | E141: 0 | F141: 0 | G141: 0 | H141: 0 | I141: 7.3722 | J141: 0 | K141: 0
A142: 61 | B142: 5 | C142: 21 | D142: 0 | E142: 0 | F142: 0 | G142: 0 | H142: 0 | I142: 7.3722 | J142: 0 | K142: 0
A143: 61 | B143: 5 | C143: 22 | D143: 0 | E143: 0 | F143: 0 | G143: 0 | H143: 0 | I143: 7.3722 | J143: 0 | K143: 0
A144: 61 | B144: 5 | C144: 23 | D144: 0 | E144: 0 | F144: 0 | G144: 0 | H144: 0 | I144: 7.3722 | J144: 0 | K144: 0
A145: 61 | B145: 5 | C145: 24 | D145: 0 | E145: 0 | F145: 0 | G145: 0 | H145: 0 | I145: 7.3722 | J145: 0 | K145: 0
A146: 61 | B146: 5 | C146: 25 | D146: 0 | E146: 0 | F146: 0 | G146: 0 | H146: 0 | I146: 7.3722 | J146: 0 | K146: 0
A147: 61 | B147: 5 | C147: 26 | D147: 0 | E147: 0 | F147: 0 | G147: 0 | H147: 0 | I147: 7.3722 | J147: 0 | K147: 0
A148: 61 | B148: 5 | C148: 27 | D148: 0 | E148: 0 | F148: 0 | G148: 0 | H148: 0 | I148: 7.3722 | J148: 0 | K148: 0
A149: 61 | B149: 5 | C149: 28 | D149: 0 | E149: 0 | F149: 0 | G149: 0 | H149: 0 | I149: 7.3722 | J149: 0 | K149: 0
A150: 61 | B150: 5 | C150: 29 | D150: 0 | E150: 0 | F150: 0 | G150: 0 | H150: 0 | I150: 7.3722 | J150: 0 | K150: 0
A151: 61 | B151: 5 | C151: 30 | D151: 0 | E151: 0 | F151: 0 | G151: 0 | H151: 0 | I151: 7.3722 | J151: 0 | K151: 0
A152: 61 | B152: 5 | C152: 31 | D152: 0 | E152: 0 | F152: 0 | G152: 0 | H152: 0 | I152: 7.3722 | J152: 0 | K152: 0
A153: 61 | B153: 6 | C153: 1 | D153: 0 | E153: 0 | F153: 0 | G153: 0 | H153: 0 | I153: 7.3722 | J153: 0 | K153: 0
A154: 61 | B154: 6 | C154: 2 | D154: 0 | E154: 0 | F154: 0 | G154: 0 | H154: 0 | I154: 7.3722 | J154: 0 | K154: 0
A155: 61 | B155: 6 | C155: 3 | D155: 0 | E155: 0 | F155: 0 | G155: 0 | H155: 0 | I155: 7.3722 | J155: 0 | K155: 0
A156: 61 | B156: 6 | C156: 4 | D156: 0 | E156: 0 | F156: 0 | G156: 0 | H156: 0 | I156: 7.3722 | J156: 0 | K156: 0
A157: 61 | B157: 6 | C157: 5 | D157: 0 | E157: 0 | F157: 0 | G157: 0 | H157: 0 | I157: 7.3722 | J157: 0 | K157: 0
A158: 61 | B158: 6 | C158: 6 | D158: 0 | E158: 0 | F158: 0 | G158: 0 | H158: 0 | I158: 7.3722 | J158: 0 | K158: 0
A159: 61 | B159: 6 | C159: 7 | D159: 0 | E159: 0 | F159: 0 | G159: 0 | H159: 0 | I159: 7.3722 | J159: 0 | K159: 0
A160: 61 | B160: 6 | C160: 8 | D160: 0 | E160: 0 | F160: 0 | G160: 0 | H160: 0 | I160: 7.3722 | J160: 0 | K160: 0
A161: 61 | B161: 6 | C161: 9 | D161: 0 | E161: 0 | F161: 0 | G161: 0 | H161: 0 | I161: 7.3722 | J161: 0 | K161: 0
A162: 61 | B162: 6 | C162: 10 | D162: 0 | E162: 0 | F162: 0 | G162: 0 | H162: 0 | I162: 7.3722 | J162: 0 | K162: 0
A163: 61 | B163: 6 | C163: 11 | D163: 0 | E163: 0 | F163: 0 | G163: 0 | H163: 0 | I163: 7.3722 | J163: 0 | K163: 0
A164: 61 | B164: 6 | C164: 12 | D164: 0 | E164: 0 | F164: 0 | G164: 0 | H164: 0 | I164: 7.3722 | J164: 0 | K164: 0
A165: 61 | B165: 6 | C165: 13 | D165: 0 | E165: 0 | F165: 0 | G165: 0 | H165: 0 | I165: 7.3722 | J165: 0 | K165: 0
A166: 61 | B166: 6 | C166: 14 | D166: 0 | E166: 0 | F166: 0 | G166: 0 | H166: 0 | I166: 7.3722 | J166: 0 | K166: 0
A167: 61 | B167: 6 | C167: 15 | D167: 0 | E167: 0 | F167: 0 | G167: 0 | H167: 0 | I167: 7.3722 | J167: 0 | K167: 0
A168: 61 | B168: 6 | C168: 16 | D168: 0.0040641 | E168: 0.069061 | F168: 0 | G168: 0 | H168: 0 | I168: 7.3722 | J168: 0 | K168: 0
A169: 61 | B169: 6 | C169: 17 | D169: 0.32708 | E169: 23.758 | F169: 0 | G169: 0 | H169: 0 | I169: 7.3722 | J169: 0 | K169: 0
A170: 61 | B170: 6 | C170: 18 | D170: 0 | E170: 0 | F170: 0 | G170: 0 | H170: 0 | I170: 7.3722 | J170: 0 | K170: 0
A171: 61 | B171: 6 | C171: 19 | D171: 0 | E171: 0 | F171: 0 | G171: 0 | H171: 0 | I171: 7.3722 | J171: 0 | K171: 0
A172: 61 | B172: 6 | C172: 20 | D172: 0 | E172: 0 | F172: 0 | G172: 0 | H172: 0 | I172: 7.3722 | J172: 0 | K172: 0
A173: 61 | B173: 6 | C173: 21 | D173: 0 | E173: 0 | F173: 0 | G173: 0 | H173: 0 | I173: 7.3722 | J173: 0 | K173: 0
A174: 61 | B174: 6 | C174: 22 | D174: 0 | E174: 0 | F174: 0 | G174: 0 | H174: 0 | I174: 7.3722 | J174: 0 | K174: 0
A175: 61 | B175: 6 | C175: 23 | D175: 0 | E175: 0 | F175: 0 | G175: 0 | H175: 0 | I175: 7.3722 | J175: 0 | K175: 0
A176: 61 | B176: 6 | C176: 24 | D176: 0 | E176: 0 | F176: 0 | G176: 0 | H176: 0 | I176: 7.3722 | J176: 0 | K176: 0
A177: 61 | B177: 6 | C177: 25 | D177: 0.74382 | E177: 88.501 | F177: 0 | G177: 0 | H177: 0 | I177: 9.5929 | J177: 0 | K177: 0
A178: 61 | B178: 6 | C178: 26 | D178: 0 | E178: 0 | F178: 0 | G178: 0 | H178: 0 | I178: 9.5929 | J178: 0 | K178: 0
A179: 61 | B179: 6 | C179: 27 | D179: 0 | E179: 0 | F179: 0 | G179: 0 | H179: 0 | I179: 9.5929 | J179: 0 | K179: 0
A180: 61 | B180: 6 | C180: 28 | D180: 0 | E180: 0 | F180: 0 | G180: 0 | H180: 0 | I180: 9.5929 | J180: 0 | K180: 0
A181: 61 | B181: 6 | C181: 29 | D181: 0 | E181: 0 | F181: 0 | G181: 0 | H181: 0 | I181: 9.5929 | J181: 0 | K181: 0
A182: 61 | B182: 6 | C182: 30 | D182: 0 | E182: 0 | F182: 0 | G182: 0 | H182: 0 | I182: 9.5929 | J182: 0 | K182: 0
A183: 61 | B183: 7 | C183: 1 | D183: 0 | E183: 0 | F183: 0 | G183: 0 | H183: 0 | I183: 9.5929 | J183: 0 | K183: 0
A184: 61 | B184: 7 | C184: 2 | D184: 0 | E184: 0 | F184: 0 | G184: 0 | H184: 0 | I184: 9.5929 | J184: 0 | K184: 0
A185: 61 | B185: 7 | C185: 3 | D185: 0 | E185: 0 | F185: 0 | G185: 0 | H185: 0 | I185: 9.5929 | J185: 0 | K185: 0
A186: 61 | B186: 7 | C186: 4 | D186: 0 | E186: 0 | F186: 0 | G186: 0 | H186: 0 | I186: 9.5929 | J186: 0 | K186: 0
A187: 61 | B187: 7 | C187: 5 | D187: 0 | E187: 0 | F187: 0 | G187: 0 | H187: 0 | I187: 9.5929 | J187: 0 | K187: 0
A188: 61 | B188: 7 | C188: 6 | D188: 0 | E188: 0 | F188: 0 | G188: 0 | H188: 0 | I188: 9.5929 | J188: 0 | K188: 0
A189: 61 | B189: 7 | C189: 7 | D189: 0 | E189: 0 | F189: 0 | G189: 0 | H189: 0 | I189: 9.5929 | J189: 0 | K189: 0
A190: 61 | B190: 7 | C190: 8 | D190: 0 | E190: 0 | F190: 0 | G190: 0 | H190: 0 | I190: 9.5929 | J190: 0 | K190: 0
A191: 61 | B191: 7 | C191: 9 | D191: 0 | E191: 0 | F191: 0 | G191: 0 | H191: 0 | I191: 9.5929 | J191: 0 | K191: 0
A192: 61 | B192: 7 | C192: 10 | D192: 0 | E192: 0 | F192: 0 | G192: 0 | H192: 0 | I192: 9.5929 | J192: 0 | K192: 0
A193: 61 | B193: 7 | C193: 11 | D193: 0 | E193: 0 | F193: 0 | G193: 0 | H193: 0 | I193: 9.5929 | J193: 0 | K193: 0
A194: 61 | B194: 7 | C194: 12 | D194: 0 | E194: 0 | F194: 0 | G194: 0 | H194: 0 | I194: 9.5929 | J194: 0 | K194: 0
A195: 61 | B195: 7 | C195: 13 | D195: 0 | E195: 0 | F195: 0 | G195: 0 | H195: 0 | I195: 9.5929 | J195: =IF(D195=0,0,(F195)/D195*1000000*1000) -> 0 | K195: =IF(D195=0,0,(F195+G195)/D195*1000000*1000) -> 0
A196: 61 | B196: 7 | C196: 14 | D196: 0 | E196: 0 | F196: 0 | G196: 0 | H196: 0 | I196: 9.5929 | J196: 0 | K196: 0
A197: 61 | B197: 7 | C197: 15 | D197: 0 | E197: 0 | F197: 0 | G197: 0 | H197: 0 | I197: 9.5929 | J197: 0 | K197: 0
A198: 61 | B198: 7 | C198: 16 | D198: 0 | E198: 0 | F198: 0 | G198: 0 | H198: 0 | I198: 9.5929 | J198: 0 | K198: 0
A199: 61 | B199: 7 | C199: 17 | D199: 0 | E199: 0 | F199: 0 | G199: 0 | H199: 0 | I199: 9.5929 | J199: 0 | K199: 0
A200: 61 | B200: 7 | C200: 18 | D200: 0 | E200: 0 | F200: 0 | G200: 0 | H200: 0 | I200: 9.5929 | J200: 0 | K200: 0
... 4300 more rows

Sheet PWC Summary
A1: Variable Volume Water Model Version 1.02000000000000
A3: *******************************************
A4: ="Performed on: "& TEXT(NOW(),"mm/dd/yyyy")&" at "&TEXT(NOW(),"hh:mm") -> Performed on: 03/08/2020 at 21:10
A6: ="Peak 1-in-15.0 = "&TEXT('Daily Calcs'!R9,"0.00E+00")&" ppb" -> Peak 1-in-15.0 = 2.69E+02 ppb
A7: ="Chronic 1-in-15.0 = 0.00E+00 ppb" -> Chronic 1-in-15.0 = 0.00E+00 ppb
A8: ="Simulation Avg = 0.00E+00 ppb" -> Simulation Avg = 0.00E+00 ppb
A9: ="4-d avg 1-in-15.0 = 0.00E+00 ppb" -> 4-d avg 1-in-15.0 = 0.00E+00 ppb
A10: ="21-d avg 1-in-15.0 = 0.00E+00 ppb" -> 21-d avg 1-in-15.0 = 0.00E+00 ppb
A11: ="60-d avg 1-in-15.0 = 0.00E+00 ppb" -> 60-d avg 1-in-15.0 = 0.00E+00 ppb
A12: ="90-d avg 1-in-15.0 = 0.00E+00 ppb" -> 90-d avg 1-in-15.0 = 0.00E+00 ppb
A13: ="1-d avg 1-in-15.0 = "&TEXT('Daily Calcs'!R9,"0.00E+00")&" ppb" -> 1-d avg 1-in-15.0 = 2.69E+02 ppb
A14: ="Benthic Pore Water Peak 1-in-15.0 = "&TEXT('Daily Calcs'!S9,"0.00E+00")&" ppb" -> Benthic Pore Water Peak 1-in-15.0 = 2.69E+02 ppb
A15: ="Benthic Pore Water 21-d avg 1-in-15.0 = 0.00E+00 ppb" -> Benthic Pore Water 21-d avg 1-in-15.0 = 0.00E+00 ppb
A16: ="Benthic Conversion Factor = "&TEXT('Daily Calcs'!U12,"0.00")&" -Pore water (ug/L) to (total mass ug)/(dry sed mass kg)" -> Benthic Conversion Factor = 2.21 -Pore water (ug/L) to (total mass ug)/(dry sed mass kg)
A17: ="Benthic Mass Fraction in Pore Water = "&TEXT('Daily Calcs'!U13,"0.00E+00") -> Benthic Mass Fraction in Pore Water = 1.68E-01
A19: YEAR Peak 4-day 21-day 60-day 90-day Yearly Avg Benthic Pk Benthic 21-day Daily
A20: =" 1 "&TEXT('Daily Calcs'!N3,"0.00E+00")&" 0.00E+00 0.00E+00 0.00E+00 0.00E+00 0.00E+00 "&TEXT('Daily Calcs'!O3,"0.00E+00")&" 0.00E+00 "&TEXT('Daily Calcs'!N3,"0.00E+00") -> 1 5.83E+01 0.00E+00 0.00E+00 0.00E+00 0.00E+00 0.00E+00 5.83E+01 0.00E+00 5.83E+01
A21: =" 2 "&TEXT('Daily Calcs'!N4,"0.00E+00")&" 0.00E+00 0.00E+00 0.00E+00 0.00E+00 0.00E+00 "&TEXT('Daily Calcs'!O4,"0.00E+00")&" 0.00E+00 "&TEXT('Daily Calcs'!N4,"0.00E+00") -> 2 6.62E+01 0.00E+00 0.00E+00 0.00E+00 0.00E+00 0.00E+00 6.63E+01 0.00E+00 6.62E+01
A22: =" 3 "&TEXT('Daily Calcs'!N5,"0.00E+00")&" 0.00E+00 0.00E+00 0.00E+00 0.00E+00 0.00E+00 "&TEXT('Daily Calcs'!O5,"0.00E+00")&" 0.00E+00 "&TEXT('Daily Calcs'!N5,"0.00E+00") -> 3 6.83E+00 0.00E+00 0.00E+00 0.00E+00 0.00E+00 0.00E+00 6.83E+00 0.00E+00 6.83E+00
A23: =" 4 "&TEXT('Daily Calcs'!N6,"0.00E+00")&" 0.00E+00 0.00E+00 0.00E+00 0.00E+00 0.00E+00 "&TEXT('Daily Calcs'!O6,"0.00E+00")&" 0.00E+00 "&TEXT('Daily Calcs'!N6,"0.00E+00") -> 4 2.35E+02 0.00E+00 0.00E+00 0.00E+00 0.00E+00 0.00E+00 2.36E+02 0.00E+00 2.35E+02
A24: =" 5 "&TEXT('Daily Calcs'!N7,"0.00E+00")&" 0.00E+00 0.00E+00 0.00E+00 0.00E+00 0.00E+00 "&TEXT('Daily Calcs'!O7,"0.00E+00")&" 0.00E+00 "&TEXT('Daily Calcs'!N7,"0.00E+00") -> 5 2.22E+01 0.00E+00 0.00E+00 0.00E+00 0.00E+00 0.00E+00 2.22E+01 0.00E+00 2.22E+01
A25: =" 6 "&TEXT('Daily Calcs'!N8,"0.00E+00")&" 0.00E+00 0.00E+00 0.00E+00 0.00E+00 0.00E+00 "&TEXT('Daily Calcs'!O8,"0.00E+00")&" 0.00E+00 "&TEXT('Daily Calcs'!N8,"0.00E+00") -> 6 2.39E+02 0.00E+00 0.00E+00 0.00E+00 0.00E+00 0.00E+00 2.39E+02 0.00E+00 2.39E+02
A26: =" 7 "&TEXT('Daily Calcs'!N9,"0.00E+00")&" 0.00E+00 0.00E+00 0.00E+00 0.00E+00 0.00E+00 "&TEXT('Daily Calcs'!O9,"0.00E+00")&" 0.00E+00 "&TEXT('Daily Calcs'!N9,"0.00E+00") -> 7 6.27E+01 0.00E+00 0.00E+00 0.00E+00 0.00E+00 0.00E+00 6.27E+01 0.00E+00 6.27E+01
A27: =" 8 "&TEXT('Daily Calcs'!N10,"0.00E+00")&" 0.00E+00 0.00E+00 0.00E+00 0.00E+00 0.00E+00 "&TEXT('Daily Calcs'!O10,"0.00E+00")&" 0.00E+00 "&TEXT('Daily Calcs'!N10,"0.00E+00") -> 8 5.91E+01 0.00E+00 0.00E+00 0.00E+00 0.00E+00 0.00E+00 5.92E+01 0.00E+00 5.91E+01
A28: =" 9 "&TEXT('Daily Calcs'!N11,"0.00E+00")&" 0.00E+00 0.00E+00 0.00E+00 0.00E+00 0.00E+00 "&TEXT('Daily Calcs'!O11,"0.00E+00")&" 0.00E+00 "&TEXT('Daily Calcs'!N11,"0.00E+00") -> 9 3.71E+01 0.00E+00 0.00E+00 0.00E+00 0.00E+00 0.00E+00 3.72E+01 0.00E+00 3.71E+01
A29: =" 10 "&TEXT('Daily Calcs'!N12,"0.00E+00")&" 0.00E+00 0.00E+00 0.00E+00 0.00E+00 0.00E+00 "&TEXT('Daily Calcs'!O12,"0.00E+00")&" 0.00E+00 "&TEXT('Daily Calcs'!N12,"0.00E+00") -> 10 4.10E+01 0.00E+00 0.00E+00 0.00E+00 0.00E+00 0.00E+00 4.10E+01 0.00E+00 4.10E+01
A30: =" 11 "&TEXT('Daily Calcs'!N13,"0.00E+00")&" 0.00E+00 0.00E+00 0.00E+00 0.00E+00 0.00E+00 "&TEXT('Daily Calcs'!O13,"0.00E+00")&" 0.00E+00 "&TEXT('Daily Calcs'!N13,"0.00E+00") -> 11 8.03E+01 0.00E+00 0.00E+00 0.00E+00 0.00E+00 0.00E+00 8.05E+01 0.00E+00 8.03E+01
A31: =" 12 "&TEXT('Daily Calcs'!N14,"0.00E+00")&" 0.00E+00 0.00E+00 0.00E+00 0.00E+00 0.00E+00 "&TEXT('Daily Calcs'!O14,"0.00E+00")&" 0.00E+00 "&TEXT('Daily Calcs'!N14,"0.00E+00") -> 12 2.45E+01 0.00E+00 0.00E+00 0.00E+00 0.00E+00 0.00E+00 2.45E+01 0.00E+00 2.45E+01
A32: =" 13 "&TEXT('Daily Calcs'!N15,"0.00E+00")&" 0.00E+00 0.00E+00 0.00E+00 0.00E+00 0.00E+00 "&TEXT('Daily Calcs'!O15,"0.00E+00")&" 0.00E+00 "&TEXT('Daily Calcs'!N15,"0.00E+00") -> 13 2.71E+02 0.00E+00 0.00E+00 0.00E+00 0.00E+00 0.00E+00 2.72E+02 0.00E+00 2.71E+02
A33: =" 14 "&TEXT('Daily Calcs'!N16,"0.00E+00")&" 0.00E+00 0.00E+00 0.00E+00 0.00E+00 0.00E+00 "&TEXT('Daily Calcs'!O16,"0.00E+00")&" 0.00E+00 "&TEXT('Daily Calcs'!N16,"0.00E+00") -> 14 9.25E+01 0.00E+00 0.00E+00 0.00E+00 0.00E+00 0.00E+00 9.27E+01 0.00E+00 9.25E+01
A34: =" 15 "&TEXT('Daily Calcs'!N17,"0.00E+00")&" 0.00E+00 0.00E+00 0.00E+00 0.00E+00 0.00E+00 "&TEXT('Daily Calcs'!O17,"0.00E+00")&" 0.00E+00 "&TEXT('Daily Calcs'!N17,"0.00E+00") -> 15 2.46E+01 0.00E+00 0.00E+00 0.00E+00 0.00E+00 0.00E+00 2.47E+01 0.00E+00 2.46E+01
A35: =" 16 "&TEXT('Daily Calcs'!N18,"0.00E+00")&" 0.00E+00 0.00E+00 0.00E+00 0.00E+00 0.00E+00 "&TEXT('Daily Calcs'!O18,"0.00E+00")&" 0.00E+00 "&TEXT('Daily Calcs'!N18,"0.00E+00") -> 16 7.36E+00 0.00E+00 0.00E+00 0.00E+00 0.00E+00 0.00E+00 7.36E+00 0.00E+00 7.36E+00
A36: =" 17 "&TEXT('Daily Calcs'!N19,"0.00E+00")&" 0.00E+00 0.00E+00 0.00E+00 0.00E+00 0.00E+00 "&TEXT('Daily Calcs'!O19,"0.00E+00")&" 0.00E+00 "&TEXT('Daily Calcs'!N19,"0.00E+00") -> 17 4.67E+01 0.00E+00 0.00E+00 0.00E+00 0.00E+00 0.00E+00 4.67E+01 0.00E+00 4.67E+01
A37: =" 18 "&TEXT('Daily Calcs'!N20,"0.00E+00")&" 0.00E+00 0.00E+00 0.00E+00 0.00E+00 0.00E+00 "&TEXT('Daily Calcs'!O20,"0.00E+00")&" 0.00E+00 "&TEXT('Daily Calcs'!N20,"0.00E+00") -> 18 2.58E+01 0.00E+00 0.00E+00 0.00E+00 0.00E+00 0.00E+00 2.58E+01 0.00E+00 2.58E+01
A38: =" 19 "&TEXT('Daily Calcs'!N21,"0.00E+00")&" 0.00E+00 0.00E+00 0.00E+00 0.00E+00 0.00E+00 "&TEXT('Daily Calcs'!O21,"0.00E+00")&" 0.00E+00 "&TEXT('Daily Calcs'!N21,"0.00E+00") -> 19 5.89E+01 0.00E+00 0.00E+00 0.00E+00 0.00E+00 0.00E+00 5.90E+01 0.00E+00 5.89E+01
A39: =" 20 "&TEXT('Daily Calcs'!N22,"0.00E+00")&" 0.00E+00 0.00E+00 0.00E+00 0.00E+00 0.00E+00 "&TEXT('Daily Calcs'!O22,"0.00E+00")&" 0.00E+00 "&TEXT('Daily Calcs'!N22,"0.00E+00") -> 20 2.71E+02 0.00E+00 0.00E+00 0.00E+00 0.00E+00 0.00E+00 2.72E+02 0.00E+00 2.71E+02
A40: =" 21 "&TEXT('Daily Calcs'!N23,"0.00E+00")&" 0.00E+00 0.00E+00 0.00E+00 0.00E+00 0.00E+00 "&TEXT('Daily Calcs'!O23,"0.00E+00")&" 0.00E+00 "&TEXT('Daily Calcs'!N23,"0.00E+00") -> 21 2.39E+01 0.00E+00 0.00E+00 0.00E+00 0.00E+00 0.00E+00 2.40E+01 0.00E+00 2.39E+01
A41: =" 22 "&TEXT('Daily Calcs'!N24,"0.00E+00")&" 0.00E+00 0.00E+00 0.00E+00 0.00E+00 0.00E+00 "&TEXT('Daily Calcs'!O24,"0.00E+00")&" 0.00E+00 "&TEXT('Daily Calcs'!N24,"0.00E+00") -> 22 4.58E+01 0.00E+00 0.00E+00 0.00E+00 0.00E+00 0.00E+00 4.58E+01 0.00E+00 4.58E+01
A42: =" 23 "&TEXT('Daily Calcs'!N25,"0.00E+00")&" 0.00E+00 0.00E+00 0.00E+00 0.00E+00 0.00E+00 "&TEXT('Daily Calcs'!O25,"0.00E+00")&" 0.00E+00 "&TEXT('Daily Calcs'!N25,"0.00E+00") -> 23 1.13E+02 0.00E+00 0.00E+00 0.00E+00 0.00E+00 0.00E+00 1.14E+02 0.00E+00 1.13E+02
A43: =" 24 "&TEXT('Daily Calcs'!N26,"0.00E+00")&" 0.00E+00 0.00E+00 0.00E+00 0.00E+00 0.00E+00 "&TEXT('Daily Calcs'!O26,"0.00E+00")&" 0.00E+00 "&TEXT('Daily Calcs'!N26,"0.00E+00") -> 24 7.21E+00 0.00E+00 0.00E+00 0.00E+00 0.00E+00 0.00E+00 7.21E+00 0.00E+00 7.21E+00
A44: =" 25 "&TEXT('Daily Calcs'!N27,"0.00E+00")&" 0.00E+00 0.00E+00 0.00E+00 0.00E+00 0.00E+00 "&TEXT('Daily Calcs'!O27,"0.00E+00")&" 0.00E+00 "&TEXT('Daily Calcs'!N27,"0.00E+00") -> 25 1.41E+02 0.00E+00 0.00E+00 0.00E+00 0.00E+00 0.00E+00 1.41E+02 0.00E+00 1.41E+02
A45: =" 26 "&TEXT('Daily Calcs'!N28,"0.00E+00")&" 0.00E+00 0.00E+00 0.00E+00 0.00E+00 0.00E+00 "&TEXT('Daily Calcs'!O28,"0.00E+00")&" 0.00E+00 "&TEXT('Daily Calcs'!N28,"0.00E+00") -> 26 5.42E-01 0.00E+00 0.00E+00 0.00E+00 0.00E+00 0.00E+00 5.42E-01 0.00E+00 5.42E-01
A46: =" 27 "&TEXT('Daily Calcs'!N29,"0.00E+00")&" 0.00E+00 0.00E+00 0.00E+00 0.00E+00 0.00E+00 "&TEXT('Daily Calcs'!O29,"0.00E+00")&" 0.00E+00 "&TEXT('Daily Calcs'!N29,"0.00E+00") -> 27 1.13E+01 0.00E+00 0.00E+00 0.00E+00 0.00E+00 0.00E+00 1.13E+01 0.00E+00 1.13E+01
A47: =" 28 "&TEXT('Daily Calcs'!N30,"0.00E+00")&" 0.00E+00 0.00E+00 0.00E+00 0.00E+00 0.00E+00 "&TEXT('Daily Calcs'!O30,"0.00E+00")&" 0.00E+00 "&TEXT('Daily Calcs'!N30,"0.00E+00") -> 28 1.60E+02 0.00E+00 0.00E+00 0.00E+00 0.00E+00 0.00E+00 1.60E+02 0.00E+00 1.60E+02
A48: =" 29 "&TEXT('Daily Calcs'!N31,"0.00E+00")&" 0.00E+00 0.00E+00 0.00E+00 0.00E+00 0.00E+00 "&TEXT('Daily Calcs'!O31,"0.00E+00")&" 0.00E+00 "&TEXT('Daily Calcs'!N31,"0.00E+00") -> 29 3.18E+01 0.00E+00 0.00E+00 0.00E+00 0.00E+00 0.00E+00 3.18E+01 0.00E+00 3.18E+01
A49: =" 30 "&TEXT('Daily Calcs'!N32,"0.00E+00")&" 0.00E+00 0.00E+00 0.00E+00 0.00E+00 0.00E+00 "&TEXT('Daily Calcs'!O32,"0.00E+00")&" 0.00E+00 "&TEXT('Daily Calcs'!N32,"0.00E+00") -> 30 4.81E+01 0.00E+00 0.00E+00 0.00E+00 0.00E+00 0.00E+00 4.82E+01 0.00E+00 4.81E+01

Sheet PWC Daily CSV
A1: col 1: Daily Depth (m)
A2: col 2: Daily Average Aqueous Conc. in Water Columm, kg/m3
A3: col 3: Daily Average Aqueous Conc. in Benthic Zone, kg/m3
A4: col 4: Daily Peak Aqueous Conc. in Water Column, kg/m3
A5: 22280 = Start Day (number of days since 1900)
A6: 0.1 | B6: ='Daily Calcs'!J2/1000000 -> 0 | C6: ='Daily Calcs'!K2/1000000 -> 0 | D6: =B6 -> 0
A7: 0.1 | B7: ='Daily Calcs'!J3/1000000 -> 0 | C7: ='Daily Calcs'!K3/1000000 -> 0 | D7: =B7 -> 0
A8: 0.1 | B8: ='Daily Calcs'!J4/1000000 -> 0 | C8: ='Daily Calcs'!K4/1000000 -> 0 | D8: 0
A9: 0.1 | B9: ='Daily Calcs'!J5/1000000 -> 0 | C9: ='Daily Calcs'!K5/1000000 -> 0 | D9: 0
A10: 0.1 | B10: ='Daily Calcs'!J6/1000000 -> 0 | C10: ='Daily Calcs'!K6/1000000 -> 0 | D10: 0
A11: 0.1 | B11: ='Daily Calcs'!J7/1000000 -> 0 | C11: ='Daily Calcs'!K7/1000000 -> 0 | D11: 0
A12: 0.1 | B12: ='Daily Calcs'!J8/1000000 -> 0 | C12: ='Daily Calcs'!K8/1000000 -> 0 | D12: 0
A13: 0.1 | B13: ='Daily Calcs'!J9/1000000 -> 0 | C13: ='Daily Calcs'!K9/1000000 -> 0 | D13: 0
A14: 0.1 | B14: ='Daily Calcs'!J10/1000000 -> 0 | C14: ='Daily Calcs'!K10/1000000 -> 0 | D14: 0
A15: 0.1 | B15: ='Daily Calcs'!J11/1000000 -> 0 | C15: ='Daily Calcs'!K11/1000000 -> 0 | D15: 0
A16: 0.1 | B16: ='Daily Calcs'!J12/1000000 -> 0 | C16: ='Daily Calcs'!K12/1000000 -> 0 | D16: 0
A17: 0.1 | B17: ='Daily Calcs'!J13/1000000 -> 0 | C17: ='Daily Calcs'!K13/1000000 -> 0 | D17: 0
A18: 0.1 | B18: ='Daily Calcs'!J14/1000000 -> 0 | C18: ='Daily Calcs'!K14/1000000 -> 0 | D18: 0
A19: 0.1 | B19: ='Daily Calcs'!J15/1000000 -> 0 | C19: ='Daily Calcs'!K15/1000000 -> 0 | D19: 0
A20: 0.1 | B20: ='Daily Calcs'!J16/1000000 -> 0 | C20: ='Daily Calcs'!K16/1000000 -> 0 | D20: 0
A21: 0.1 | B21: ='Daily Calcs'!J17/1000000 -> 0 | C21: ='Daily Calcs'!K17/1000000 -> 0 | D21: 0
A22: 0.1 | B22: ='Daily Calcs'!J18/1000000 -> 0 | C22: ='Daily Calcs'!K18/1000000 -> 0 | D22: 0
A23: 0.1 | B23: ='Daily Calcs'!J19/1000000 -> 0 | C23: ='Daily Calcs'!K19/1000000 -> 0 | D23: 0
A24: 0.1 | B24: ='Daily Calcs'!J20/1000000 -> 0 | C24: ='Daily Calcs'!K20/1000000 -> 0 | D24: 0
A25: 0.1 | B25: ='Daily Calcs'!J21/1000000 -> 0 | C25: ='Daily Calcs'!K21/1000000 -> 0 | D25: 0
A26: 0.1 | B26: ='Daily Calcs'!J22/1000000 -> 0 | C26: ='Daily Calcs'!K22/1000000 -> 0 | D26: 0
A27: 0.1 | B27: ='Daily Calcs'!J23/1000000 -> 0 | C27: ='Daily Calcs'!K23/1000000 -> 0 | D27: 0
A28: 0.1 | B28: ='Daily Calcs'!J24/1000000 -> 0 | C28: ='Daily Calcs'!K24/1000000 -> 0 | D28: 0
A29: 0.1 | B29: ='Daily Calcs'!J25/1000000 -> 0 | C29: ='Daily Calcs'!K25/1000000 -> 0 | D29: 0
A30: 0.1 | B30: ='Daily Calcs'!J26/1000000 -> 0 | C30: ='Daily Calcs'!K26/1000000 -> 0 | D30: 0
A31: 0.1 | B31: ='Daily Calcs'!J27/1000000 -> 0 | C31: ='Daily Calcs'!K27/1000000 -> 0 | D31: 0
A32: 0.1 | B32: ='Daily Calcs'!J28/1000000 -> 0 | C32: ='Daily Calcs'!K28/1000000 -> 0 | D32: 0
A33: 0.1 | B33: ='Daily Calcs'!J29/1000000 -> 0 | C33: ='Daily Calcs'!K29/1000000 -> 0 | D33: 0
A34: 0.1 | B34: ='Daily Calcs'!J30/1000000 -> 0 | C34: ='Daily Calcs'!K30/1000000 -> 0 | D34: 0
A35: 0.1 | B35: ='Daily Calcs'!J31/1000000 -> 0 | C35: ='Daily Calcs'!K31/1000000 -> 0 | D35: 0
A36: 0.1 | B36: ='Daily Calcs'!J32/1000000 -> 0 | C36: ='Daily Calcs'!K32/1000000 -> 0 | D36: 0
A37: 0.1 | B37: ='Daily Calcs'!J33/1000000 -> 0 | C37: ='Daily Calcs'!K33/1000000 -> 0 | D37: 0
A38: 0.1 | B38: ='Daily Calcs'!J34/1000000 -> 0 | C38: ='Daily Calcs'!K34/1000000 -> 0 | D38: 0
A39: 0.1 | B39: ='Daily Calcs'!J35/1000000 -> 0 | C39: ='Daily Calcs'!K35/1000000 -> 0 | D39: 0
A40: 0.1 | B40: ='Daily Calcs'!J36/1000000 -> 0 | C40: ='Daily Calcs'!K36/1000000 -> 0 | D40: 0
A41: 0.1 | B41: ='Daily Calcs'!J37/1000000 -> 0 | C41: ='Daily Calcs'!K37/1000000 -> 0 | D41: 0
A42: 0.1 | B42: ='Daily Calcs'!J38/1000000 -> 0 | C42: ='Daily Calcs'!K38/1000000 -> 0 | D42: 0
A43: 0.1 | B43: ='Daily Calcs'!J39/1000000 -> 0 | C43: ='Daily Calcs'!K39/1000000 -> 0 | D43: 0
A44: 0.1 | B44: ='Daily Calcs'!J40/1000000 -> 0 | C44: ='Daily Calcs'!K40/1000000 -> 0 | D44: 0
A45: 0.1 | B45: ='Daily Calcs'!J41/1000000 -> 0 | C45: ='Daily Calcs'!K41/1000000 -> 0 | D45: 0
A46: 0.1 | B46: ='Daily Calcs'!J42/1000000 -> 0 | C46: ='Daily Calcs'!K42/1000000 -> 0 | D46: 0
A47: 0.1 | B47: ='Daily Calcs'!J43/1000000 -> 0 | C47: ='Daily Calcs'!K43/1000000 -> 0 | D47: 0
A48: 0.1 | B48: ='Daily Calcs'!J44/1000000 -> 0 | C48: ='Daily Calcs'!K44/1000000 -> 0 | D48: 0
A49: 0.1 | B49: ='Daily Calcs'!J45/1000000 -> 0 | C49: ='Daily Calcs'!K45/1000000 -> 0 | D49: 0
A50: 0.1 | B50: ='Daily Calcs'!J46/1000000 -> 0 | C50: ='Daily Calcs'!K46/1000000 -> 0 | D50: 0
A51: 0.1 | B51: ='Daily Calcs'!J47/1000000 -> 0 | C51: ='Daily Calcs'!K47/1000000 -> 0 | D51: 0
A52: 0.1 | B52: ='Daily Calcs'!J48/1000000 -> 0 | C52: ='Daily Calcs'!K48/1000000 -> 0 | D52: 0
A53: 0.1 | B53: ='Daily Calcs'!J49/1000000 -> 0 | C53: ='Daily Calcs'!K49/1000000 -> 0 | D53: 0
A54: 0.1 | B54: ='Daily Calcs'!J50/1000000 -> 0 | C54: ='Daily Calcs'!K50/1000000 -> 0 | D54: 0
A55: 0.1 | B55: ='Daily Calcs'!J51/1000000 -> 0 | C55: ='Daily Calcs'!K51/1000000 -> 0 | D55: 0
A56: 0.1 | B56: ='Daily Calcs'!J52/1000000 -> 0 | C56: ='Daily Calcs'!K52/1000000 -> 0 | D56: 0
A57: 0.1 | B57: ='Daily Calcs'!J53/1000000 -> 0 | C57: ='Daily Calcs'!K53/1000000 -> 0 | D57: 0
A58: 0.1 | B58: ='Daily Calcs'!J54/1000000 -> 0 | C58: ='Daily Calcs'!K54/1000000 -> 0 | D58: 0
A59: 0.1 | B59: ='Daily Calcs'!J55/1000000 -> 0 | C59: ='Daily Calcs'!K55/1000000 -> 0 | D59: 0
A60: 0.1 | B60: ='Daily Calcs'!J56/1000000 -> 0 | C60: ='Daily Calcs'!K56/1000000 -> 0 | D60: 0
A61: 0.1 | B61: ='Daily Calcs'!J57/1000000 -> 0 | C61: ='Daily Calcs'!K57/1000000 -> 0 | D61: 0
A62: 0.1 | B62: ='Daily Calcs'!J58/1000000 -> 0 | C62: ='Daily Calcs'!K58/1000000 -> 0 | D62: 0
A63: 0.1 | B63: ='Daily Calcs'!J59/1000000 -> 0 | C63: ='Daily Calcs'!K59/1000000 -> 0 | D63: 0
A64: 0.1 | B64: ='Daily Calcs'!J60/1000000 -> 0 | C64: ='Daily Calcs'!K60/1000000 -> 0 | D64: 0
A65: 0.1 | B65: ='Daily Calcs'!J61/1000000 -> 0 | C65: ='Daily Calcs'!K61/1000000 -> 0 | D65: 0
A66: 0.1 | B66: ='Daily Calcs'!J62/1000000 -> 0 | C66: ='Daily Calcs'!K62/1000000 -> 0 | D66: 0
A67: 0.1 | B67: ='Daily Calcs'!J63/1000000 -> 0 | C67: ='Daily Calcs'!K63/1000000 -> 0 | D67: 0
A68: 0.1 | B68: ='Daily Calcs'!J64/1000000 -> 0 | C68: ='Daily Calcs'!K64/1000000 -> 0 | D68: 0
A69: 0.1 | B69: ='Daily Calcs'!J65/1000000 -> 0 | C69: ='Daily Calcs'!K65/1000000 -> 0 | D69: 0
A70: 0.1 | B70: ='Daily Calcs'!J66/1000000 -> 0 | C70: ='Daily Calcs'!K66/1000000 -> 0 | D70: 0
A71: 0.1 | B71: ='Daily Calcs'!J67/1000000 -> 0 | C71: ='Daily Calcs'!K67/1000000 -> 0 | D71: =B71 -> 0
A72: 0.1 | B72: ='Daily Calcs'!J68/1000000 -> 0 | C72: ='Daily Calcs'!K68/1000000 -> 0 | D72: 0
A73: 0.1 | B73: ='Daily Calcs'!J69/1000000 -> 0 | C73: ='Daily Calcs'!K69/1000000 -> 0 | D73: 0
A74: 0.1 | B74: ='Daily Calcs'!J70/1000000 -> 0 | C74: ='Daily Calcs'!K70/1000000 -> 0 | D74: 0
A75: 0.1 | B75: ='Daily Calcs'!J71/1000000 -> 0 | C75: ='Daily Calcs'!K71/1000000 -> 0 | D75: 0
A76: 0.1 | B76: ='Daily Calcs'!J72/1000000 -> 0 | C76: ='Daily Calcs'!K72/1000000 -> 0 | D76: 0
A77: 0.1 | B77: ='Daily Calcs'!J73/1000000 -> 0 | C77: ='Daily Calcs'!K73/1000000 -> 0 | D77: 0
A78: 0.1 | B78: ='Daily Calcs'!J74/1000000 -> 0 | C78: ='Daily Calcs'!K74/1000000 -> 0 | D78: 0
A79: 0.1 | B79: ='Daily Calcs'!J75/1000000 -> 0 | C79: ='Daily Calcs'!K75/1000000 -> 0 | D79: 0
A80: 0.1 | B80: ='Daily Calcs'!J76/1000000 -> 0 | C80: ='Daily Calcs'!K76/1000000 -> 0 | D80: 0
A81: 0.1 | B81: ='Daily Calcs'!J77/1000000 -> 0 | C81: ='Daily Calcs'!K77/1000000 -> 0 | D81: 0
A82: 0.1 | B82: ='Daily Calcs'!J78/1000000 -> 0 | C82: ='Daily Calcs'!K78/1000000 -> 0 | D82: 0
A83: 0.1 | B83: ='Daily Calcs'!J79/1000000 -> 0 | C83: ='Daily Calcs'!K79/1000000 -> 0 | D83: 0
A84: 0.1 | B84: ='Daily Calcs'!J80/1000000 -> 0 | C84: ='Daily Calcs'!K80/1000000 -> 0 | D84: 0
A85: 0.1 | B85: ='Daily Calcs'!J81/1000000 -> 0 | C85: ='Daily Calcs'!K81/1000000 -> 0 | D85: 0
A86: 0.1 | B86: ='Daily Calcs'!J82/1000000 -> 0 | C86: ='Daily Calcs'!K82/1000000 -> 0 | D86: 0
A87: 0.1 | B87: ='Daily Calcs'!J83/1000000 -> 0 | C87: ='Daily Calcs'!K83/1000000 -> 0 | D87: 0
A88: 0.1 | B88: ='Daily Calcs'!J84/1000000 -> 0 | C88: ='Daily Calcs'!K84/1000000 -> 0 | D88: 0
A89: 0.1 | B89: ='Daily Calcs'!J85/1000000 -> 0 | C89: ='Daily Calcs'!K85/1000000 -> 0 | D89: 0
A90: 0.1 | B90: ='Daily Calcs'!J86/1000000 -> 0 | C90: ='Daily Calcs'!K86/1000000 -> 0 | D90: 0
A91: 0.1 | B91: ='Daily Calcs'!J87/1000000 -> 0 | C91: ='Daily Calcs'!K87/1000000 -> 0 | D91: 0
A92: 0.1 | B92: ='Daily Calcs'!J88/1000000 -> 0 | C92: ='Daily Calcs'!K88/1000000 -> 0 | D92: 0
A93: 0.1 | B93: ='Daily Calcs'!J89/1000000 -> 0 | C93: ='Daily Calcs'!K89/1000000 -> 0 | D93: 0
A94: 0.1 | B94: ='Daily Calcs'!J90/1000000 -> 0 | C94: ='Daily Calcs'!K90/1000000 -> 0 | D94: 0
A95: 0.1 | B95: ='Daily Calcs'!J91/1000000 -> 0 | C95: ='Daily Calcs'!K91/1000000 -> 0 | D95: 0
A96: 0.1 | B96: ='Daily Calcs'!J92/1000000 -> 0 | C96: ='Daily Calcs'!K92/1000000 -> 0 | D96: 0
A97: 0.1 | B97: ='Daily Calcs'!J93/1000000 -> 0 | C97: ='Daily Calcs'!K93/1000000 -> 0 | D97: 0
A98: 0.1 | B98: ='Daily Calcs'!J94/1000000 -> 0 | C98: ='Daily Calcs'!K94/1000000 -> 0 | D98: 0
A99: 0.1 | B99: ='Daily Calcs'!J95/1000000 -> 0 | C99: ='Daily Calcs'!K95/1000000 -> 0 | D99: 0
A100: 0.1 | B100: ='Daily Calcs'!J96/1000000 -> 0 | C100: ='Daily Calcs'!K96/1000000 -> 0 | D100: 0
A101: 0.1 | B101: ='Daily Calcs'!J97/1000000 -> 0 | C101: ='Daily Calcs'!K97/1000000 -> 0 | D101: 0
A102: 0.1 | B102: ='Daily Calcs'!J98/1000000 -> 0 | C102: ='Daily Calcs'!K98/1000000 -> 0 | D102: 0
A103: 0.1 | B103: ='Daily Calcs'!J99/1000000 -> 0 | C103: ='Daily Calcs'!K99/1000000 -> 0 | D103: 0
A104: 0.1 | B104: ='Daily Calcs'!J100/1000000 -> 0 | C104: ='Daily Calcs'!K100/1000000 -> 0 | D104: 0
A105: 0.1 | B105: ='Daily Calcs'!J101/1000000 -> 0 | C105: ='Daily Calcs'!K101/1000000 -> 0 | D105: 0
A106: 0.1 | B106: ='Daily Calcs'!J102/1000000 -> 0 | C106: ='Daily Calcs'!K102/1000000 -> 0 | D106: 0
A107: 0.1 | B107: ='Daily Calcs'!J103/1000000 -> 0 | C107: ='Daily Calcs'!K103/1000000 -> 0 | D107: 0
A108: 0.1 | B108: ='Daily Calcs'!J104/1000000 -> 0 | C108: ='Daily Calcs'!K104/1000000 -> 0 | D108: 0
A109: 0.1 | B109: ='Daily Calcs'!J105/1000000 -> 0 | C109: ='Daily Calcs'!K105/1000000 -> 0 | D109: 0
A110: 0.1 | B110: ='Daily Calcs'!J106/1000000 -> 0 | C110: ='Daily Calcs'!K106/1000000 -> 0 | D110: 0
A111: 0.1 | B111: ='Daily Calcs'!J107/1000000 -> 0 | C111: ='Daily Calcs'!K107/1000000 -> 0 | D111: 0
A112: 0.1 | B112: ='Daily Calcs'!J108/1000000 -> 0 | C112: ='Daily Calcs'!K108/1000000 -> 0 | D112: 0
A113: 0.1 | B113: ='Daily Calcs'!J109/1000000 -> 0 | C113: ='Daily Calcs'!K109/1000000 -> 0 | D113: 0
A114: 0.1 | B114: ='Daily Calcs'!J110/1000000 -> 0 | C114: ='Daily Calcs'!K110/1000000 -> 0 | D114: 0
A115: 0.1 | B115: ='Daily Calcs'!J111/1000000 -> 0 | C115: ='Daily Calcs'!K111/1000000 -> 0 | D115: 0
A116: 0.1 | B116: ='Daily Calcs'!J112/1000000 -> 0 | C116: ='Daily Calcs'!K112/1000000 -> 0 | D116: 0
A117: 0.1 | B117: ='Daily Calcs'!J113/1000000 -> 0 | C117: ='Daily Calcs'!K113/1000000 -> 0 | D117: 0
A118: 0.1 | B118: ='Daily Calcs'!J114/1000000 -> 0 | C118: ='Daily Calcs'!K114/1000000 -> 0 | D118: 0
A119: 0.1 | B119: ='Daily Calcs'!J115/1000000 -> 0 | C119: ='Daily Calcs'!K115/1000000 -> 0 | D119: 0
A120: 0.1 | B120: ='Daily Calcs'!J116/1000000 -> 0 | C120: ='Daily Calcs'!K116/1000000 -> 0 | D120: 0
A121: 0.1 | B121: ='Daily Calcs'!J117/1000000 -> 0 | C121: ='Daily Calcs'!K117/1000000 -> 0 | D121: 0
A122: 0.1 | B122: ='Daily Calcs'!J118/1000000 -> 0 | C122: ='Daily Calcs'!K118/1000000 -> 0 | D122: 0
A123: 0.1 | B123: ='Daily Calcs'!J119/1000000 -> 0 | C123: ='Daily Calcs'!K119/1000000 -> 0 | D123: 0
A124: 0.1 | B124: ='Daily Calcs'!J120/1000000 -> 0 | C124: ='Daily Calcs'!K120/1000000 -> 0 | D124: 0
A125: 0.1 | B125: ='Daily Calcs'!J121/1000000 -> 0 | C125: ='Daily Calcs'!K121/1000000 -> 0 | D125: 0
A126: 0.1 | B126: ='Daily Calcs'!J122/1000000 -> 0 | C126: ='Daily Calcs'!K122/1000000 -> 0 | D126: 0
A127: 0.1 | B127: ='Daily Calcs'!J123/1000000 -> 0 | C127: ='Daily Calcs'!K123/1000000 -> 0 | D127: 0
A128: 0.1 | B128: ='Daily Calcs'!J124/1000000 -> 0 | C128: ='Daily Calcs'!K124/1000000 -> 0 | D128: 0
A129: 0.1 | B129: ='Daily Calcs'!J125/1000000 -> 0 | C129: ='Daily Calcs'!K125/1000000 -> 0 | D129: 0
A130: 0.1 | B130: ='Daily Calcs'!J126/1000000 -> 0 | C130: ='Daily Calcs'!K126/1000000 -> 0 | D130: 0
A131: 0.1 | B131: ='Daily Calcs'!J127/1000000 -> 0 | C131: ='Daily Calcs'!K127/1000000 -> 0 | D131: 0
A132: 0.1 | B132: ='Daily Calcs'!J128/1000000 -> 0 | C132: ='Daily Calcs'!K128/1000000 -> 0 | D132: 0
A133: 0.1 | B133: ='Daily Calcs'!J129/1000000 -> 0 | C133: ='Daily Calcs'!K129/1000000 -> 0 | D133: 0
A134: 0.1 | B134: ='Daily Calcs'!J130/1000000 -> 0 | C134: ='Daily Calcs'!K130/1000000 -> 0 | D134: 0
A135: 0.1 | B135: ='Daily Calcs'!J131/1000000 -> 0 | C135: ='Daily Calcs'!K131/1000000 -> 0 | D135: =B135 -> 0
A136: 0.1 | B136: ='Daily Calcs'!J132/1000000 -> 0 | C136: ='Daily Calcs'!K132/1000000 -> 0 | D136: 0
A137: 0.1 | B137: ='Daily Calcs'!J133/1000000 -> 0 | C137: ='Daily Calcs'!K133/1000000 -> 0 | D137: 0
A138: 0.1 | B138: ='Daily Calcs'!J134/1000000 -> 0 | C138: ='Daily Calcs'!K134/1000000 -> 0 | D138: 0
A139: 0.1 | B139: ='Daily Calcs'!J135/1000000 -> 0 | C139: ='Daily Calcs'!K135/1000000 -> 0 | D139: 0
A140: 0.1 | B140: ='Daily Calcs'!J136/1000000 -> 0 | C140: ='Daily Calcs'!K136/1000000 -> 0 | D140: 0
A141: 0.1 | B141: ='Daily Calcs'!J137/1000000 -> 0 | C141: ='Daily Calcs'!K137/1000000 -> 0 | D141: 0
A142: 0.1 | B142: ='Daily Calcs'!J138/1000000 -> 0 | C142: ='Daily Calcs'!K138/1000000 -> 0 | D142: 0
A143: 0.1 | B143: ='Daily Calcs'!J139/1000000 -> 0 | C143: ='Daily Calcs'!K139/1000000 -> 0 | D143: 0
A144: 0.1 | B144: ='Daily Calcs'!J140/1000000 -> 0 | C144: ='Daily Calcs'!K140/1000000 -> 0 | D144: 0
A145: 0.1 | B145: ='Daily Calcs'!J141/1000000 -> 0 | C145: ='Daily Calcs'!K141/1000000 -> 0 | D145: 0
A146: 0.1 | B146: ='Daily Calcs'!J142/1000000 -> 0 | C146: ='Daily Calcs'!K142/1000000 -> 0 | D146: 0
A147: 0.1 | B147: ='Daily Calcs'!J143/1000000 -> 0 | C147: ='Daily Calcs'!K143/1000000 -> 0 | D147: 0
A148: 0.1 | B148: ='Daily Calcs'!J144/1000000 -> 0 | C148: ='Daily Calcs'!K144/1000000 -> 0 | D148: 0
A149: 0.1 | B149: ='Daily Calcs'!J145/1000000 -> 0 | C149: ='Daily Calcs'!K145/1000000 -> 0 | D149: 0
A150: 0.1 | B150: ='Daily Calcs'!J146/1000000 -> 0 | C150: ='Daily Calcs'!K146/1000000 -> 0 | D150: 0
A151: 0.1 | B151: ='Daily Calcs'!J147/1000000 -> 0 | C151: ='Daily Calcs'!K147/1000000 -> 0 | D151: 0
A152: 0.1 | B152: ='Daily Calcs'!J148/1000000 -> 0 | C152: ='Daily Calcs'!K148/1000000 -> 0 | D152: 0
A153: 0.1 | B153: ='Daily Calcs'!J149/1000000 -> 0 | C153: ='Daily Calcs'!K149/1000000 -> 0 | D153: 0
A154: 0.1 | B154: ='Daily Calcs'!J150/1000000 -> 0 | C154: ='Daily Calcs'!K150/1000000 -> 0 | D154: 0
A155: 0.1 | B155: ='Daily Calcs'!J151/1000000 -> 0 | C155: ='Daily Calcs'!K151/1000000 -> 0 | D155: 0
A156: 0.1 | B156: ='Daily Calcs'!J152/1000000 -> 0 | C156: ='Daily Calcs'!K152/1000000 -> 0 | D156: 0
A157: 0.1 | B157: ='Daily Calcs'!J153/1000000 -> 0 | C157: ='Daily Calcs'!K153/1000000 -> 0 | D157: 0
A158: 0.1 | B158: ='Daily Calcs'!J154/1000000 -> 0 | C158: ='Daily Calcs'!K154/1000000 -> 0 | D158: 0
A159: 0.1 | B159: ='Daily Calcs'!J155/1000000 -> 0 | C159: ='Daily Calcs'!K155/1000000 -> 0 | D159: 0
A160: 0.1 | B160: ='Daily Calcs'!J156/1000000 -> 0 | C160: ='Daily Calcs'!K156/1000000 -> 0 | D160: 0
A161: 0.1 | B161: ='Daily Calcs'!J157/1000000 -> 0 | C161: ='Daily Calcs'!K157/1000000 -> 0 | D161: 0
A162: 0.1 | B162: ='Daily Calcs'!J158/1000000 -> 0 | C162: ='Daily Calcs'!K158/1000000 -> 0 | D162: 0
A163: 0.1 | B163: ='Daily Calcs'!J159/1000000 -> 0 | C163: ='Daily Calcs'!K159/1000000 -> 0 | D163: 0
A164: 0.1 | B164: ='Daily Calcs'!J160/1000000 -> 0 | C164: ='Daily Calcs'!K160/1000000 -> 0 | D164: 0
A165: 0.1 | B165: ='Daily Calcs'!J161/1000000 -> 0 | C165: ='Daily Calcs'!K161/1000000 -> 0 | D165: 0
A166: 0.1 | B166: ='Daily Calcs'!J162/1000000 -> 0 | C166: ='Daily Calcs'!K162/1000000 -> 0 | D166: 0
A167: 0.1 | B167: ='Daily Calcs'!J163/1000000 -> 0 | C167: ='Daily Calcs'!K163/1000000 -> 0 | D167: 0
A168: 0.1 | B168: ='Daily Calcs'!J164/1000000 -> 0 | C168: ='Daily Calcs'!K164/1000000 -> 0 | D168: 0
A169: 0.1 | B169: ='Daily Calcs'!J165/1000000 -> 0 | C169: ='Daily Calcs'!K165/1000000 -> 0 | D169: 0
A170: 0.1 | B170: ='Daily Calcs'!J166/1000000 -> 0 | C170: ='Daily Calcs'!K166/1000000 -> 0 | D170: 0
A171: 0.1 | B171: ='Daily Calcs'!J167/1000000 -> 0 | C171: ='Daily Calcs'!K167/1000000 -> 0 | D171: 0
A172: 0.1 | B172: ='Daily Calcs'!J168/1000000 -> 0 | C172: ='Daily Calcs'!K168/1000000 -> 0 | D172: 0
A173: 0.1 | B173: ='Daily Calcs'!J169/1000000 -> 0 | C173: ='Daily Calcs'!K169/1000000 -> 0 | D173: 0
A174: 0.1 | B174: ='Daily Calcs'!J170/1000000 -> 0 | C174: ='Daily Calcs'!K170/1000000 -> 0 | D174: 0
A175: 0.1 | B175: ='Daily Calcs'!J171/1000000 -> 0 | C175: ='Daily Calcs'!K171/1000000 -> 0 | D175: 0
A176: 0.1 | B176: ='Daily Calcs'!J172/1000000 -> 0 | C176: ='Daily Calcs'!K172/1000000 -> 0 | D176: 0
A177: 0.1 | B177: ='Daily Calcs'!J173/1000000 -> 0 | C177: ='Daily Calcs'!K173/1000000 -> 0 | D177: 0
A178: 0.1 | B178: ='Daily Calcs'!J174/1000000 -> 0 | C178: ='Daily Calcs'!K174/1000000 -> 0 | D178: 0
A179: 0.1 | B179: ='Daily Calcs'!J175/1000000 -> 0 | C179: ='Daily Calcs'!K175/1000000 -> 0 | D179: 0
A180: 0.1 | B180: ='Daily Calcs'!J176/1000000 -> 0 | C180: ='Daily Calcs'!K176/1000000 -> 0 | D180: 0
A181: 0.1 | B181: ='Daily Calcs'!J177/1000000 -> 0 | C181: ='Daily Calcs'!K177/1000000 -> 0 | D181: 0
A182: 0.1 | B182: ='Daily Calcs'!J178/1000000 -> 0 | C182: ='Daily Calcs'!K178/1000000 -> 0 | D182: 0
A183: 0.1 | B183: ='Daily Calcs'!J179/1000000 -> 0 | C183: ='Daily Calcs'!K179/1000000 -> 0 | D183: 0
A184: 0.1 | B184: ='Daily Calcs'!J180/1000000 -> 0 | C184: ='Daily Calcs'!K180/1000000 -> 0 | D184: 0
A185: 0.1 | B185: ='Daily Calcs'!J181/1000000 -> 0 | C185: ='Daily Calcs'!K181/1000000 -> 0 | D185: 0
A186: 0.1 | B186: ='Daily Calcs'!J182/1000000 -> 0 | C186: ='Daily Calcs'!K182/1000000 -> 0 | D186: 0
A187: 0.1 | B187: ='Daily Calcs'!J183/1000000 -> 0 | C187: ='Daily Calcs'!K183/1000000 -> 0 | D187: 0
A188: 0.1 | B188: ='Daily Calcs'!J184/1000000 -> 0 | C188: ='Daily Calcs'!K184/1000000 -> 0 | D188: 0
A189: 0.1 | B189: ='Daily Calcs'!J185/1000000 -> 0 | C189: ='Daily Calcs'!K185/1000000 -> 0 | D189: 0
A190: 0.1 | B190: ='Daily Calcs'!J186/1000000 -> 0 | C190: ='Daily Calcs'!K186/1000000 -> 0 | D190: 0
A191: 0.1 | B191: ='Daily Calcs'!J187/1000000 -> 0 | C191: ='Daily Calcs'!K187/1000000 -> 0 | D191: 0
A192: 0.1 | B192: ='Daily Calcs'!J188/1000000 -> 0 | C192: ='Daily Calcs'!K188/1000000 -> 0 | D192: 0
A193: 0.1 | B193: ='Daily Calcs'!J189/1000000 -> 0 | C193: ='Daily Calcs'!K189/1000000 -> 0 | D193: 0
A194: 0.1 | B194: ='Daily Calcs'!J190/1000000 -> 0 | C194: ='Daily Calcs'!K190/1000000 -> 0 | D194: 0
A195: 0.1 | B195: ='Daily Calcs'!J191/1000000 -> 0 | C195: ='Daily Calcs'!K191/1000000 -> 0 | D195: 0
A196: 0.1 | B196: ='Daily Calcs'!J192/1000000 -> 0 | C196: ='Daily Calcs'!K192/1000000 -> 0 | D196: 0
A197: 0.1 | B197: ='Daily Calcs'!J193/1000000 -> 0 | C197: ='Daily Calcs'!K193/1000000 -> 0 | D197: 0
A198: 0.1 | B198: ='Daily Calcs'!J194/1000000 -> 0 | C198: ='Daily Calcs'!K194/1000000 -> 0 | D198: 0
A199: 0.1 | B199: ='Daily Calcs'!J195/1000000 -> 0 | C199: ='Daily Calcs'!K195/1000000 -> 0 | D199: =B199 -> 0
A200: 0.1 | B200: ='Daily Calcs'!J196/1000000 -> 0 | C200: ='Daily Calcs'!K196/1000000 -> 0 | D200: 0
... 10762 more rows
